Cogmind - Beta 12 @@@ ROGUE MODE // 2023.12.27 @ 22:11:25 Player: Eso Result: Destroyed by G-47 Trooper with Particle Gun Performance ------------- Evolutions (0) 0 Regions Visited (1) 200 Robots Destroyed (7) 35 Value Destroyed (203) 203 Prototype IDs (0) 0 Alien Tech Used (0) 0 Bonus (0) 0 TOTAL SCORE: 438 Bonus ------- None Cogmind --------- Core Integrity 0/250 Matter 247/600 Energy 123/125 System Corruption 0% Temperature Cool (10) Movement Walking (120) Location -10/Materials Parts ------- > --- POWER (1) -------- Light Ion Engine > --- PROPULSION (2) --- Aluminum Leg > --- UTILITY (2) ------ Large Matter Pod Large Matter Pod > --- WEAPON (2) ------- (None) > --- INVENTORY (5) ---- High-capacity Battery (250) Large Matter Pod (0) Structural Scanner Peak State ------------ > --- POWER ------------ Light Ion Engine > --- PROPULSION ------- Aluminum Leg Aluminum Leg > --- UTILITY ---------- Large Matter Pod Large Matter Pod > --- WEAPON ----------- Assault Rifle > --- INVENTORY -------- High-capacity Battery Large Matter Pod Structural Scanner [Rating: 6] Favorites ----------- Power Light Ion Engine Engine Light Ion Engine Propulsion Wheel Leg Aluminum Leg Wheel Wheel Utility Large Matter Pod Storage Large Matter Pod Weapon Assault Rifle Energy Gun Small Laser Ballistic Gun Assault Rifle Build | -11 -10 ------- Run | Jun Mat Slots Evolved . | . . Power . | . . Propulsion . | . . Utility . | . . Weapon . | . . Parts Attached 17 | 8 9 Power 3 | 1 2 Engine 3 | 1 2 Core . | . . Reactor . | . . Propulsion 6 | 4 2 Treads . | . . Leg 3 | 1 2 Wheel 3 | 3 . Hover . | . . Flight . | . . Utility 2 | . 2 Device . | . . Storage 2 | . 2 Processor . | . . Hackware . | . . Protection . | . . Artifact . | . . Weapon 6 | 3 3 Energy Gun 2 | 1 1 Energy Cannon . | . . Ballistic Gun 4 | 2 2 Ballistic Cannon . | . . Launcher . | . . Special Weapon . | . . Impact Weapon . | . . Slashing Weapon . | . . Piercing Weapon . | . . Special Melee Weapon . | . . Unidentified Prototypes . | . . Parts Lost 4 | . 4 Power . | . . Propulsion 2 | . 2 Utility . | . . Weapon 2 | . 2 Highest Loss Streak 2 | . 2 To Critical Strikes . | . . Average Slot Usage (%) 67 | . 67 Engine 14 | . 14 Leg 13 | . 13 Wheel 13 | . 13 Storage 4 | . 4 Energy Gun 8 | . 8 Ballistic Gun 13 | . 13 Naked Turns . | . . Heaviest Build 11 | 6 11 Greatest Support 20 | 20 20 Greatest Overweight (x) 1 | . 1 Average Overweight (x) . | . . Largest Inventory Capacity 5 | 5 5 Average Capacity 5 | 5 5 Most Carried 5 | 5 5 Average Carried 2 | 2 2 Final Capacity 5 | 5 5 Final Carried 3 | 3 3 Class Distribution -------------------- 100% | Mutant Dominant Class ---------------- Mutant | -10/Materials Resources | -11 -10 ----------- Run | Jun Mat Matter Collected 438 | 283 155 Remotely . | . . Salvage Created 229 | 35 194 Parts 13 | . 13 Haulers Intercepted . | . . Recyclers Shooed . | . . Parts Field Recycled . | . . Retrieved Matter . | . . Parts Self-Destructed . | . . Prevented . | . . Kills | -11 -10 ------- Run | Jun Mat Combat Hostiles Destroyed 7 | 1 6 Guns 7 | 1 6 Classes Destroyed 2 | 1 1 Swarmer 2 | . 2 Grunt 5 | 1 4 Best Kill Streak 3 | 1 3 Combat Bots Only 3 | 1 3 Max Kills in Single Turn 1 | 1 1 Gunslinging . | . . Exploded . | . . Melee . | . . Uniques/NPCs Destroyed . | . . Combat | -11 -10 -------- Run | Jun Mat Damage Taken 842 | 21 821 Core 258 | 11 247 Absorbed by Shields . | . . Core Remaining (%) 95 | 95 . Volleys Fired 50 | 2 48 Largest 2 | 2 2 Hottest 60 | 60 60 Shots Fired 58 | 3 55 Gun 58 | 3 55 Cannon . | . . Launcher . | . . Special . | . . Kinetic 47 | 1 46 Thermal 11 | 2 9 Explosive . | . . Electromagnetic . | . . Robot Hit Streak 13 | 2 13 Robot Miss Streak 6 | 1 6 Penetration Max . | . . Secondary Targets 1 | . 1 Max Gunslinging Chain 1 | . 1 Shots Hit Robots 33 | 2 31 Core Hits 14 | 2 12 Critical Kills . | . . Critical Parts Destroyed 1 | . 1 Critical Strikes 1 | . 1 Destroy 1 | . 1 Melee Attacks . | . . Impact . | . . Slashing . | . . Piercing . | . . Sneak Attacks . | . . Combat Hostiles . | . . Follow-up Attacks . | . . Damage Inflicted 438 | 23 415 Guns 438 | 23 415 Cannons . | . . Explosions . | . . Melee . | . . Ramming . | . . Kinetic 374 | 12 362 Thermal 64 | 11 53 Explosive . | . . Electromagnetic . | . . Impact . | . . Slashing . | . . Piercing . | . . Highest Corruption . | . . Average Corruption . | . . Corruption Purged . | . . Corruption Blocked . | . . Overload Shots . | . . Overflow Damage . | . . Projectiles . | . . Explosions . | . . Melee . | . . Knockbacks . | . . Impact . | . . Kinetic . | . . Secondary . | . . Self-Inflicted Damage . | . . Shots . | . . Rammed . | . . Targets Rammed . | . . Kicked . | . . Crushed . | . . Highest Temperature 27 | 12 27 Average Temperature 11 | 9 12 Received Heat Transfer 483 | 12 471 Siege Activations . | . . Robots Corrupted . | . . Combat Hostiles . | . . Parts Fried . | . . Impact Corruptions . | . . Robots Melted . | . . Combat Hostiles . | . . Parts Melted 2 | . 2 Heat Transferred 150 | 25 125 Parts Sabotaged . | . . Parts Stolen . | . . Parts Stripped . | . . Power Chain Reactions . | . . Missiles Intercepted . | . . Alert | -11 -10 ------- Run | Jun Mat Peak Influence 158 | 20 158 Initial 13 | . 13 Average 66 | 1 92 Maximum Alert Level . | . . Low Security (%) 100 | 100 100 Level 1 . | . . Level 2 . | . . Level 3 . | . . Level 4 . | . . Level 5 . | . . High Security . | . . Max Security . | . . Squads Dispatched 1 | . 1 Investigation . | . . Extermination . | . . Reinforcement 1 | . 1 Assault . | . . Garrison . | . . Intercept . | . . Searches Triggered . | . . Construction Impeded . | . . Haulers Reinforced . | . . Active Scanning Responses . | . . Cargo Convoy Interrupts . | . . Stealth | -11 -10 --------- Run | Jun Mat Distress Signals 3 | . 3 Communications Jammed . | . . Distress Signals . | . . Times Spotted 14 | 1 13 Peak Tracking Total 6 | 1 6 Tactical Retreats 1 | . 1 Traps | -11 -10 ------- Run | Jun Mat Traps Triggered . | . . Indirectly . | . . Trap Hack Attempts . | . . Triggered . | . . Disarmed . | . . Reprogrammed . | . . Reused . | . . Traps Extracted . | . . Installed . | . . Triggered . | . . Machines | -11 -10 ---------- Run | Jun Mat Machines Disabled . | . . Max in Single Turn . | . . Machines Repaired . | . . Machines Sabotaged . | . . Overloaded Fab Kills . | . . Hacking | -11 -10 --------- Run | Jun Mat Machines Accessed . | . . Terminals . | . . Fabricators . | . . Repair Stations . | . . Recycling Units . | . . Scanalyzers . | . . Garrison Access . | . . Total Hacks . | . . Successful . | . . Failed . | . . Catastrophic . | . . Database Lockouts . | . . Manual . | . . Terminals . | . . Fabricators . | . . Repair Stations . | . . Recycling Units . | . . Scanalyzers . | . . Garrison Access . | . . Terminal Hacks . | . . Fabricator Hacks . | . . Repair Station Hacks . | . . Recycling Unit Hacks . | . . Scanalyzer . | . . Garrison Access Hacks . | . . Unauthorized Hacks . | . . Terminals . | . . Fabricators . | . . Repair Stations . | . . Recycling Units . | . . Scanalyzers . | . . Garrison Access . | . . Data Cores Recovered . | . . Used . | . . Hacking Detections . | . . Full Trace Events . | . . Feedback Events . | . . Feedback Blocked . | . . Robot Schematics Acquired . | . . Robots Built . | . . Authchips . | . . Time . | . . Total Robot Build Rating . | . . Part Schematics Acquired . | . . Parts Built . | . . Authchips . | . . Time . | . . Total Part Build Rating . | . . Parts Repaired . | . . Time . | . . Parts Recycled . | . . Recycled Matter . | . . Retrieved Matter . | . . Retrieved Components . | . . Parts Scanalyzed . | . . Part Schematics Acquired . | . . Parts Damaged . | . . Bothacking | -11 -10 ------------ Run | Jun Mat Used RIF Installer . | . . Robots Hacked . | . . Non-combat . | . . Combat . | . . Robot Hacks Applied . | . . Relay Couplers Released . | . . Fabnet Peak Effective % . | . . Robots Rewired . | . . Allies Hacked . | . . Hacks Repelled . | . . Allies | -11 -10 -------- Run | Jun Mat Total Allies . | . . Largest Group . | . . Highest-Rated Group . | . . Highest-Rated Ally . | . . Total Orders . | . . Ally Attacks . | . . Total Damage . | . . Kills . | . . Allies Corrupted . | . . Allies Melted . | . . Intel | -11 -10 ------- Run | Jun Mat Robot Analysis Total . | . . Derelict Logs Recovered . | . . Drone Launches . | . . Drone Recoveries . | . . Exploration | -11 -10 ------------- Run | Jun Mat Turns Passed 359 | 102 257 Spaces Moved 236 | 99 137 Core 25 | 24 1 Treads . | . . Legs 50 | . 50 Wheels 161 | 75 86 Hover . | . . Flight . | . . Fastest Speed 50 | 50 80 Average Speed 85 | 72 94 Slowest Speed 120 | 80 120 Overloaded Moves . | . . Propulsion Burnouts . | . . Robots Hopped . | . . Cave-ins Triggered . | . . Exploration Rate (%) 13 | 5 21 Regions Visited 1 Branch Regions . Pre-discovered Areas . | . . Known Exits Taken . | . . Unknown Exits Taken 1 | 1 . Scrap Searched . | . . Spaces Dug . | . . Terrain Destroyed . | . . Melee . | . . Projectile . | . . AOE . | . . Terrain Rammed . | . . Walls Destroyed . | . . Machines Disabled . | . . Actions | -11 -10 --------- Run | Jun Mat Total 334 | 125 209 Wait 10 | 8 2 Move 235 | 98 137 Hop . | . . Pick Up 16 | 8 8 Fast Attach . | . . Attach 9 | 6 3 Detach 1 | 1 . Swap 8 | 2 6 Drop 5 | . 5 Fire 50 | 2 48 Melee . | . . Ram . | . . Kick . | . . Crush . | . . Escape Stasis . | . . Rewire . | . . Trap . | . . Miscellaneous . | . . Route ------- -11/Junkyard -10/Materials History --------- Turn | Location | Event 2 | -11/Junkyard | Met Revision 17 79 | -11/Junkyard | Discovered new exit (range 8) 103 | -11/Junkyard | Entered Materials 243 | -10/Materials | Core integrity fell below 50% 326 | -10/Materials | Build established: Mutant 343 | -10/Materials | Core integrity fell below 20% 360 | -10/Materials | Destroyed by G-47 Trooper with Particle Gun Last Messages --------------- R-06 Scavenger collects Ion Engine. Acquired Hcp. Battery. K-01 Serf cleans the Electrolysis Chamber. R-06 Scavenger inserts Ion Engine into recycling unit. R-06 Scavenger inserts Wheel into recycling unit. Recycling unit begins recycling process. Acquired Lrg. Matter Pod. W-16 Scout sends out distress signal. R-06 Scavenger inserts Lgt. Ion Engine into recycling unit. R-06 Scavenger inserts Assault Rifle into recycling unit. Recycling unit begins recycling process. R-06 Scavenger inserts Sml. Laser into recycling unit. K-01 Serf cleans the Electrolysis Chamber. R-06 Scavenger inserts Heat Sink into recycling unit. Recycling unit begins recycling process. Recycling unit begins matter transfer process. K-01 Serf cleans the Electrolysis Chamber. Aluminum Leg destroyed. Assault Rifle destroyed. [Achievement: First Step to Greatness] Map ----- +----------------------------------------------------+ | ?????????????????????????????????????????????????? | | ?????????????????????????????????????????????????? | | ?????????????????????????????????????????????????? | | ?????????????????????????????????????????????????? | | ?????????????????????????????????????????????????? | | ?????????????????????????????????????????????????? | | ?????????????????????????????????????????????????? | | ?????????????????????????????????????????????????? | | ?????????????????????????????????????????????????? | | ?????????????????????????????????????????????????? | | ???????????????????????? ????????????????????????? | | ???????????????????????# ????????????????????????? | | ??????????????????????? u????????????????????????? | | ???????????????????????# ????????????????????????? | | ???????????????????????#k###?????????????????????? | | ???????????????????????# ?????????????????????? | | ??????????????????????? ?????????????????????? | | ???????????????????????#k ?????????????????????? | | ???????????????????#"""# #?????????????????????? | | ??????????????#+####"Y"# #?????????????????????? | | ?????????????? #?????????????????????? | | ??????????????? gg#?????????????????????? | | ???????????????? """ #?????????????????????? | | ??????????????????#u """ #?????????????????????? | | ??????????????????# """ ##????????????????????? | | ??????????????????#^ @ T#????????????????????? | | ??????????????????# ##????????????????????? | | ??????????????????# ^ #?????????????????????? | | ??????????????????#^ m ###########???????????? | | ??????????????????# w r # #???????????? | | ??????????????? ?# + #???????????? | | ????????????????"?# !! # #???????????? | | ??????????????""" # ! #?? #???????????? | | ????????????" """ # ! %#???? """ #???????????? | | ??????????? + #??????"??????????????? | | ??????????? # % #?????????????????????? | | ????????? ?# #?????????????????????? | | ???????############ ^ " #?????????????????????? | | ???????# """ #############+#+##????? | | ???????# ^ """ #????? | | ???????# ^ ###### | | ???????# ^ ^ | | ???????+ ^ ###+######+########+####### | | ???????# #########+###?? ????????????? ?????? | | ???????# ?????????? ???? ????????????? ?????? | | ??????????????????? "???? ???????????? ????? | | ??????????????????? "???? ???????????"""" ????? | | ?????????????????? "???? ??????????""""" ???? | | ?????????????????? ???? ??????????""""" ???? | | ?????????????????? ????? ????????? ??? | +----------------------------------------------------+ Best States ------------- Heat Dissipation 25 Energy Generation 10 Energy Capacity 250 Matter Stores 300 Matter Capacity 600 Sight Range 16 Terrain Scan Density 10 Evasion (%) 50 Item Schematics ----------------- None Robot Schematics ------------------ None Fabricated ------------ Nothing Alien Tech Used ----------------- None Achievements -------------- Crack Shot First Step to Greatness Storm Trooper Uninvited Guest Challenges ------------ None Game ------ Seed UtilityArmorFilter Manual? 0 Play Time 00:15:59 Cumulative 0.5 hours Start 2023.12.27 @ 21:53:34 End 2023.12.27 @ 22:11:25 Sessions 1 Manual Loads 0 Difficulty Rogue Special Mode None Game No. 1 Rogue 1 Adventurer 0 Explorer 0 Win Type - Total 0 Types 0/0/0/0/0/0/0/0/0 Lore% 0 Gallery% 0 Achievement% 1 Wizard Run 0 Options --------- ASCII 0 Keyboard 0 Movement Mouse Keybinds 0 Fullscreen 1 Font 18/SmallcapsGlow Map View 76x50 Tactical HUD 0 Map Filters NONE Filters NONE Steam 1 RUN: e084d0af-edd7-4522-8def-881bf17e487c